[Event "Titled Tuesday Blitz December 27 Early 2022"]
[White "Fernandez Siles, Luis"]
[Black "Injac, Teodora"]
[WhiteFideId "2209420"]
[BlackFideId "932400"]
[WhiteElo "2218"]
[BlackElo "2391"]
[Result "0-1"]
[Round "02"]
[TimeControl "180+2"]
[Date "2022.12.27"]
[WhiteClock "0:00:09"]
[BlackClock "0:00:49"]

1. d4 {[%clk 0:03:00]}  Nf6 {[%clk 0:02:59]} 2. c4 {[%clk 0:03:00]}  g6 {[%clk 0:03:00]} 3. Nc3 {[%clk 0:02:59]}  Bg7 {[%clk 0:03:00]} 4. e4 {[%clk 0:02:59]}  d6 {[%clk 0:03:01]} 5. Nf3 {[%clk 0:03:00]}  O-O {[%clk 0:03:01]} 6. Be2 {[%clk 0:03:00]}  Na6 {[%clk 0:03:01]} 7. Bf4 {[%clk 0:02:58]}  Bg4 {[%clk 0:02:46]} 8. e5 {[%clk 0:02:52]}  Nd7 {[%clk 0:02:32]} 9. h3 {[%clk 0:02:42]}  dxe5 {[%clk 0:02:24]} 10. dxe5 {[%clk 0:02:21]}  Bxf3 {[%clk 0:02:21]} 11. Bxf3 {[%clk 0:02:22]}  c6 {[%clk 0:02:12]} 12. Qe2 {[%clk 0:02:12]}  Qa5 {[%clk 0:02:12]} 13. O-O {[%clk 0:01:38]}  Nxe5 {[%clk 0:02:11]} 14. Rfe1 {[%clk 0:01:21]}  Nxf3+ {[%clk 0:02:09]} 15. Qxf3 {[%clk 0:01:22]}  Rfe8 {[%clk 0:02:00]} 16. Rad1 {[%clk 0:01:18]}  Nc5 {[%clk 0:01:51]} 17. a3 {[%clk 0:01:01]}  Ne6 {[%clk 0:01:50]} 18. Bd2 {[%clk 0:00:55]}  Qf5 {[%clk 0:01:47]} 19. Qe2 {[%clk 0:00:30]}  Rad8 {[%clk 0:01:46]} 20. g4 {[%clk 0:00:20]}  Qc5 {[%clk 0:01:17]} 21. Be3 {[%clk 0:00:17]}  Qa5 {[%clk 0:01:13]} 22. f4 {[%clk 0:00:15]}  Bxc3 {[%clk 0:01:10]} 23. bxc3 {[%clk 0:00:14]}  Qxc3 {[%clk 0:01:11]} 24. f5 {[%clk 0:00:15]}  Nd4 {[%clk 0:01:05]} 25. Qf2 {[%clk 0:00:12]}  Nc2 {[%clk 0:00:52]} 26. Rxd8 {[%clk 0:00:08]}  Rxd8 {[%clk 0:00:52]} 27. Rc1 {[%clk 0:00:09]}  Qxe3 {[%clk 0:00:49]} 0-1


[Site "https://www.chess.com"]

[Event "Titled Tuesday Blitz December 27 Early 2022"]
[White "Ferreira, Vitor Hugo Vieira"]
[Black "Orzech, Dominik"]
[WhiteFideId "2119765"]
[BlackFideId "1115065"]
[WhiteElo "2128"]
[BlackElo "2308"]
[Result "1-0"]
[Round "02"]
[TimeControl "180+2"]
[Date "2022.12.27"]
[WhiteClock "0:02:24"]
[BlackClock "0:00:41"]

1. e4 {[%clk 0:03:00]}  c5 {[%clk 0:02:53]} 2. Nf3 {[%clk 0:03:00]}  d6 {[%clk 0:02:53]} 3. d4 {[%clk 0:03:00]}  cxd4 {[%clk 0:02:54]} 4. Nxd4 {[%clk 0:03:01]}  Nf6 {[%clk 0:02:54]} 5. Nc3 {[%clk 0:03:01]}  a6 {[%clk 0:02:54]} 6. h3 {[%clk 0:03:01]}  e5 {[%clk 0:01:51]} 7. Nb3 {[%clk 0:03:01]}  h5 {[%clk 0:01:46]} 8. Be3 {[%clk 0:02:58]}  Be7 {[%clk 0:01:29]} 9. Qf3 {[%clk 0:02:58]}  Be6 {[%clk 0:01:27]} 10. O-O-O {[%clk 0:02:58]}  Nbd7 {[%clk 0:01:27]} 11. Kb1 {[%clk 0:02:58]}  b5 {[%clk 0:01:27]} 12. Rg1 {[%clk 0:02:55]}  Qc7 {[%clk 0:01:26]} 13. g4 {[%clk 0:02:51]}  hxg4 {[%clk 0:01:24]} 14. hxg4 {[%clk 0:02:52]}  Rc8 {[%clk 0:01:24]} 15. Bd3 {[%clk 0:02:52]}  b4 {[%clk 0:01:22]} 16. Nd5 {[%clk 0:02:51]}  Bxd5 {[%clk 0:01:16]} 17. exd5 {[%clk 0:02:52]}  a5 {[%clk 0:01:04]} 18. g5 {[%clk 0:02:50]}  e4 {[%clk 0:01:04]} 19. Bxe4 {[%clk 0:02:48]}  Ne5 {[%clk 0:01:04]} 20. Qg2 {[%clk 0:02:45]}  Nxe4 {[%clk 0:00:58]} 21. Qxe4 {[%clk 0:02:44]}  a4 {[%clk 0:00:58]} 22. Nd2 {[%clk 0:02:32]}  a3 {[%clk 0:00:54]} 23. f4 {[%clk 0:02:32]}  Rh4 {[%clk 0:00:49]} 24. Rh1 {[%clk 0:02:31]}  Rxh1 {[%clk 0:00:45]} 25. Rxh1 {[%clk 0:02:32]}  Ng4 {[%clk 0:00:44]} 26. Rh8+ {[%clk 0:02:25]}  Kd7 {[%clk 0:00:41]} 27. Qf5# {[%clk 0:02:24]} 1-0


[Site "https://www.chess.com"]

[Event "Titled Tuesday Blitz December 27 Early 2022"]
[White "Flis, Pawel"]
[Black "Garcia Almaguer, Juan Manuel"]
[WhiteFideId "1112864"]
[BlackFideId "5110491"]
[WhiteElo "1879"]
[BlackElo "2090"]
[Result "0-1"]
[Round "02"]
[TimeControl "180+2"]
[Date "2022.12.27"]
[WhiteClock "0:00:04"]
[BlackClock "0:01:38"]

1. e4 {[%clk 0:02:55]}  e5 {[%clk 0:02:57]} 2. d4 {[%clk 0:02:55]}  exd4 {[%clk 0:02:53]} 3. Nf3 {[%clk 0:02:55]}  Nc6 {[%clk 0:02:52]} 4. Bc4 {[%clk 0:02:56]}  Nf6 {[%clk 0:02:51]} 5. e5 {[%clk 0:02:56]}  d5 {[%clk 0:02:50]} 6. Bb5 {[%clk 0:02:57]}  Ne4 {[%clk 0:02:50]} 7. Nxd4 {[%clk 0:02:57]}  Bd7 {[%clk 0:02:50]} 8. Bxc6 {[%clk 0:02:57]}  bxc6 {[%clk 0:02:51]} 9. O-O {[%clk 0:02:57]}  Bc5 {[%clk 0:02:52]} 10. f3 {[%clk 0:02:57]}  Ng5 {[%clk 0:02:51]} 11. f4 {[%clk 0:02:57]}  Ne6 {[%clk 0:02:51]} 12. c3 {[%clk 0:02:56]}  f5 {[%clk 0:02:46]} 13. Be3 {[%clk 0:02:47]}  Bxd4 {[%clk 0:02:45]} 14. cxd4 {[%clk 0:02:44]}  Rb8 {[%clk 0:02:44]} 15. Qc2 {[%clk 0:02:26]}  O-O {[%clk 0:02:22]} 16. Nc3 {[%clk 0:02:25]}  c5 {[%clk 0:02:18]} 17. Nxd5 {[%clk 0:01:30]}  Bb5 {[%clk 0:02:15]} 18. Nc3 {[%clk 0:00:26]}  Bxf1 {[%clk 0:02:12]} 19. Rxf1 {[%clk 0:00:27]}  cxd4 {[%clk 0:02:05]} 20. Rd1 {[%clk 0:00:26]}  c5 {[%clk 0:02:02]} 21. Ne2 {[%clk 0:00:24]}  Qb6 {[%clk 0:01:59]} 22. Bc1 {[%clk 0:00:17]}  Qb5 {[%clk 0:01:58]} 23. b3 {[%clk 0:00:14]}  g6 {[%clk 0:01:55]} 24. Kh1 {[%clk 0:00:13]}  Rfd8 {[%clk 0:01:49]} 25. Rd3 {[%clk 0:00:12]}  Rbc8 {[%clk 0:01:41]} 26. h3 {[%clk 0:00:12]}  c4 {[%clk 0:01:40]} 27. bxc4 {[%clk 0:00:12]}  Rxc4 {[%clk 0:01:41]} 28. Qd1 {[%clk 0:00:08]}  Qa4 {[%clk 0:01:40]} 29. Qf1 {[%clk 0:00:05]}  Nc5 {[%clk 0:01:39]} 30. Rd1 {[%clk 0:00:04]}  Ne4 {[%clk 0:01:38]} 0-1


[Site "https://www.chess.com"]

[Event "Titled Tuesday Blitz December 27 Early 2022"]
[White "Galchenko, Matvey"]
[Black "Topalov, Aleksandar"]
[WhiteFideId "24175480"]
[BlackFideId "925659"]
[WhiteElo "2438"]
[BlackElo "2233"]
[Result "1-0"]
[Round "02"]
[TimeControl "180+2"]
[Date "2022.12.27"]
[WhiteClock "0:01:13"]
[BlackClock "0:02:02"]

1. f4 {[%clk 0:02:57]}  Nf6 {[%clk 0:02:59]} 2. Nf3 {[%clk 0:02:52]}  d5 {[%clk 0:02:57]} 3. g3 {[%clk 0:02:53]}  c5 {[%clk 0:02:57]} 4. Bg2 {[%clk 0:02:49]}  Nc6 {[%clk 0:02:57]} 5. O-O {[%clk 0:02:50]}  g6 {[%clk 0:02:54]} 6. d3 {[%clk 0:02:50]}  d4 {[%clk 0:02:53]} 7. c3 {[%clk 0:02:50]}  Bg7 {[%clk 0:02:52]} 8. e4 {[%clk 0:02:48]}  dxe3 {[%clk 0:02:49]} 9. Bxe3 {[%clk 0:02:49]}  Nd7 {[%clk 0:02:47]} 10. Qe2 {[%clk 0:02:45]}  O-O {[%clk 0:02:46]} 11. Nbd2 {[%clk 0:02:44]}  Rb8 {[%clk 0:02:32]} 12. a4 {[%clk 0:02:31]}  Re8 {[%clk 0:02:32]} 13. Nc4 {[%clk 0:02:19]}  e5 {[%clk 0:02:29]} 14. Nfxe5 {[%clk 0:02:06]}  Ndxe5 {[%clk 0:02:28]} 15. Nxe5 {[%clk 0:02:06]}  Nxe5 {[%clk 0:02:28]} 16. fxe5 {[%clk 0:02:07]}  Rxe5 {[%clk 0:02:20]} 17. Qd2 {[%clk 0:01:52]}  Qe7 {[%clk 0:02:03]} 18. Bf4 {[%clk 0:01:34]}  Re2 {[%clk 0:02:02]} 19. Rae1 {[%clk 0:01:13]} 1-0


[Site "https://www.chess.com"]

[Event "Titled Tuesday Blitz December 27 Early 2022"]
[White "Garcia Ramos, Daniel"]
[Black "Roy Chowdhury, Saptarshi"]
[WhiteFideId "32010311"]
[BlackFideId "5002974"]
[WhiteElo "2442"]
[BlackElo "2273"]
[Result "1-0"]
[Round "02"]
[TimeControl "180+2"]
[Date "2022.12.27"]
[WhiteClock "0:00:13"]
[BlackClock "0:01:02"]

1. e4 {[%clk 0:02:59]}  c5 {[%clk 0:02:58]} 2. Nf3 {[%clk 0:02:58]}  Nc6 {[%clk 0:02:58]} 3. d4 {[%clk 0:02:56]}  cxd4 {[%clk 0:02:58]} 4. Nxd4 {[%clk 0:02:57]}  g6 {[%clk 0:02:54]} 5. c4 {[%clk 0:02:56]}  Bg7 {[%clk 0:02:54]} 6. Be3 {[%clk 0:02:57]}  Nf6 {[%clk 0:02:53]} 7. Nc3 {[%clk 0:02:57]}  O-O {[%clk 0:02:54]} 8. Be2 {[%clk 0:02:57]}  b6 {[%clk 0:02:54]} 9. O-O {[%clk 0:02:51]}  Bb7 {[%clk 0:02:53]} 10. f3 {[%clk 0:02:51]}  Qb8 {[%clk 0:02:52]} 11. Qd2 {[%clk 0:02:48]}  Rd8 {[%clk 0:02:49]} 12. Rad1 {[%clk 0:02:48]}  d6 {[%clk 0:02:49]} 13. a3 {[%clk 0:02:40]}  Rd7 {[%clk 0:02:48]} 14. b4 {[%clk 0:02:38]}  Qf8 {[%clk 0:02:48]} 15. g4 {[%clk 0:02:11]}  e6 {[%clk 0:02:41]} 16. Nxc6 {[%clk 0:02:03]}  Bxc6 {[%clk 0:02:40]} 17. Bd4 {[%clk 0:02:04]}  Rad8 {[%clk 0:02:37]} 18. g5 {[%clk 0:01:58]}  Nh5 {[%clk 0:02:36]} 19. Bxg7 {[%clk 0:01:57]}  Nxg7 {[%clk 0:02:35]} 20. f4 {[%clk 0:01:55]}  f5 {[%clk 0:02:32]} 21. Bf3 {[%clk 0:01:52]}  Bb7 {[%clk 0:02:24]} 22. Rde1 {[%clk 0:01:47]}  a6 {[%clk 0:02:17]} 23. exf5 {[%clk 0:01:31]}  gxf5 {[%clk 0:02:10]} 24. Qd4 {[%clk 0:01:13]}  Bxf3 {[%clk 0:01:55]} 25. Rxf3 {[%clk 0:01:13]}  Rb7 {[%clk 0:01:53]} 26. Rfe3 {[%clk 0:01:09]}  Qf7 {[%clk 0:01:52]} 27. Ne2 {[%clk 0:00:59]}  b5 {[%clk 0:01:48]} 28. c5 {[%clk 0:00:57]}  Rbd7 {[%clk 0:01:33]} 29. c6 {[%clk 0:00:52]}  Rc7 {[%clk 0:01:33]} 30. Rc1 {[%clk 0:00:52]}  Rdc8 {[%clk 0:01:33]} 31. Qxd6 {[%clk 0:00:50]}  Qh5 {[%clk 0:01:19]} 32. Ng3 {[%clk 0:00:31]}  Qe8 {[%clk 0:01:18]} 33. Rec3 {[%clk 0:00:18]}  Qf7 {[%clk 0:01:17]} 34. Kg2 {[%clk 0:00:17]}  Rd8 {[%clk 0:01:17]} 35. Qxd8+ {[%clk 0:00:17]}  Ne8 {[%clk 0:01:15]} 36. Rd3 {[%clk 0:00:13]}  e5 {[%clk 0:01:03]} 37. Rd7 {[%clk 0:00:13]}  Qa2+ {[%clk 0:01:02]} 38. Kh3 {[%clk 0:00:13]} 1-0


[Site "https://www.chess.com"]

[Event "Titled Tuesday Blitz December 27 Early 2022"]
[White "Gerbelli Neto, Eduardo"]
[Black "Hirneise, Jens"]
[WhiteFideId "2103281"]
[BlackFideId "24614734"]
[WhiteElo "2114"]
[BlackElo "2277"]
[Result "0-1"]
[Round "02"]
[TimeControl "180+2"]
[Date "2022.12.27"]
[WhiteClock "0:00:01"]
[BlackClock "0:00:14"]

1. e4 {[%clk 0:03:00]}  d5 {[%clk 0:02:58]} 2. exd5 {[%clk 0:03:00]}  Qxd5 {[%clk 0:02:59]} 3. Nc3 {[%clk 0:03:01]}  Qd8 {[%clk 0:03:00]} 4. Bc4 {[%clk 0:03:01]}  Nf6 {[%clk 0:03:00]} 5. d3 {[%clk 0:03:02]}  Nc6 {[%clk 0:02:59]} 6. Bg5 {[%clk 0:02:56]}  Na5 {[%clk 0:02:53]} 7. Nf3 {[%clk 0:02:48]}  Nxc4 {[%clk 0:02:48]} 8. dxc4 {[%clk 0:02:49]}  Bg4 {[%clk 0:02:49]} 9. Qe2 {[%clk 0:02:40]}  Bxf3 {[%clk 0:02:44]} 10. Qxf3 {[%clk 0:02:40]}  c6 {[%clk 0:02:45]} 11. O-O {[%clk 0:02:36]}  Qa5 {[%clk 0:02:45]} 12. Bxf6 {[%clk 0:02:26]}  gxf6 {[%clk 0:02:46]} 13. Rfe1 {[%clk 0:02:26]}  O-O-O {[%clk 0:02:30]} 14. a3 {[%clk 0:02:06]}  e6 {[%clk 0:02:24]} 15. Qxf6 {[%clk 0:02:01]}  Bd6 {[%clk 0:02:08]} 16. Ne4 {[%clk 0:01:43]}  Be5 {[%clk 0:01:54]} 17. Qxf7 {[%clk 0:01:43]}  Bxb2 {[%clk 0:01:35]} 18. Qxe6+ {[%clk 0:01:42]}  Kb8 {[%clk 0:01:34]} 19. Rab1 {[%clk 0:01:36]}  Qxa3 {[%clk 0:01:34]} 20. c5 {[%clk 0:01:12]}  Ka8 {[%clk 0:01:29]} 21. Nd6 {[%clk 0:00:50]}  Qxc5 {[%clk 0:00:57]} 22. Nxb7 {[%clk 0:00:50]}  Kxb7 {[%clk 0:00:53]} 23. Rxb2+ {[%clk 0:00:46]}  Ka8 {[%clk 0:00:52]} 24. Reb1 {[%clk 0:00:33]}  Rhe8 {[%clk 0:00:36]} 25. Qf7 {[%clk 0:00:30]}  Re7 {[%clk 0:00:33]} 26. Qb3 {[%clk 0:00:31]}  Qd6 {[%clk 0:00:28]} 27. Qf3 {[%clk 0:00:29]}  Rde8 {[%clk 0:00:24]} 28. g3 {[%clk 0:00:28]}  Rd7 {[%clk 0:00:20]} 29. Kg2 {[%clk 0:00:23]}  Rf8 {[%clk 0:00:21]} 30. Qe3 {[%clk 0:00:20]}  Qd5+ {[%clk 0:00:21]} 31. Kg1 {[%clk 0:00:15]}  Rdf7 {[%clk 0:00:21]} 32. f4 {[%clk 0:00:14]}  Rd7 {[%clk 0:00:20]} 33. c3 {[%clk 0:00:08]}  h5 {[%clk 0:00:20]} 34. Re2 {[%clk 0:00:03]}  h4 {[%clk 0:00:19]} 35. Rbe1 {[%clk 0:00:03]}  hxg3 {[%clk 0:00:17]} 36. hxg3 {[%clk 0:00:04]}  Rh8 {[%clk 0:00:18]} 37. Qe4 {[%clk 0:00:02]}  Qc5+ {[%clk 0:00:18]} 38. Re3 {[%clk 0:00:02]}  Qh5 {[%clk 0:00:17]} 39. Qg2 {[%clk 0:00:01]}  Qc5 {[%clk 0:00:14]} 0-1


[Site "https://www.chess.com"]

[Event "Titled Tuesday Blitz December 27 Early 2022"]
[White "Golizadeh, Asghar"]
[Black "Darini, Pouria"]
[WhiteFideId "12505269"]
[BlackFideId "12502200"]
[WhiteElo "2455"]
[BlackElo "2401"]
[Result "1/2-1/2"]
[Round "02"]
[TimeControl "180+2"]
[Date "2022.12.27"]
[WhiteClock "0:00:09"]
[BlackClock "0:00:07"]

1. e4 {[%clk 0:02:56]}  c5 {[%clk 0:02:59]} 2. Nc3 {[%clk 0:02:55]}  Nc6 {[%clk 0:02:58]} 3. Bb5 {[%clk 0:02:54]}  Nd4 {[%clk 0:02:56]} 4. Nf3 {[%clk 0:02:54]}  a6 {[%clk 0:02:52]} 5. Bd3 {[%clk 0:02:53]}  g6 {[%clk 0:02:51]} 6. Rb1 {[%clk 0:02:53]}  Nc6 {[%clk 0:02:34]} 7. a3 {[%clk 0:02:51]}  b5 {[%clk 0:02:34]} 8. b4 {[%clk 0:02:49]}  c4 {[%clk 0:02:32]} 9. Be2 {[%clk 0:02:47]}  Bg7 {[%clk 0:02:32]} 10. Bb2 {[%clk 0:02:45]}  Bb7 {[%clk 0:01:55]} 11. O-O {[%clk 0:02:43]}  e6 {[%clk 0:01:34]} 12. Nxb5 {[%clk 0:02:36]}  Bxb2 {[%clk 0:00:52]} 13. Nd6+ {[%clk 0:02:34]}  Kf8 {[%clk 0:00:53]} 14. Nxb7 {[%clk 0:02:33]}  Qc7 {[%clk 0:00:52]} 15. Rxb2 {[%clk 0:02:29]}  Qxb7 {[%clk 0:00:52]} 16. Bxc4 {[%clk 0:02:29]}  Qc7 {[%clk 0:00:44]} 17. Be2 {[%clk 0:02:16]}  Nf6 {[%clk 0:00:40]} 18. d3 {[%clk 0:02:12]}  d5 {[%clk 0:00:35]} 19. exd5 {[%clk 0:02:08]}  exd5 {[%clk 0:00:33]} 20. Qd2 {[%clk 0:02:05]}  Kg7 {[%clk 0:00:32]} 21. Qc3 {[%clk 0:02:02]}  Qd6 {[%clk 0:00:24]} 22. Qc5 {[%clk 0:01:57]}  Qd7 {[%clk 0:00:24]} 23. Qc3 {[%clk 0:01:17]}  d4 {[%clk 0:00:24]} 24. Qb3 {[%clk 0:01:16]}  Nd5 {[%clk 0:00:22]} 25. Nd2 {[%clk 0:01:07]}  Nc3 {[%clk 0:00:05]} 26. Bf3 {[%clk 0:01:05]}  Rab8 {[%clk 0:00:06]} 27. Bxc6 {[%clk 0:00:55]}  Qxc6 {[%clk 0:00:06]} 28. Qc4 {[%clk 0:00:55]}  Qd6 {[%clk 0:00:03]} 29. Ne4 {[%clk 0:00:50]}  Nxe4 {[%clk 0:00:01]} 30. dxe4 {[%clk 0:00:50]}  Rhc8 {[%clk 0:00:02]} 31. Qd5 {[%clk 0:00:42]}  Qxd5 {[%clk 0:00:02]} 32. exd5 {[%clk 0:00:42]}  Rd8 {[%clk 0:00:03]} 33. Rd1 {[%clk 0:00:41]}  Rxd5 {[%clk 0:00:03]} 34. Rb3 {[%clk 0:00:38]}  Rc8 {[%clk 0:00:04]} 35. Rd2 {[%clk 0:00:32]}  a5 {[%clk 0:00:04]} 36. g3 {[%clk 0:00:22]}  axb4 {[%clk 0:00:04]} 37. axb4 {[%clk 0:00:22]}  Rc4 {[%clk 0:00:01]} 38. b5 {[%clk 0:00:19]}  Rd7 {[%clk 0:00:01]} 39. b6 {[%clk 0:00:17]}  Rb7 {[%clk 0:00:02]} 40. Rb5 {[%clk 0:00:17]}  Rc6 {[%clk 0:00:01]} 41. Rxd4 {[%clk 0:00:17]}  Rcxb6 {[%clk 0:00:02]} 42. Rxb6 {[%clk 0:00:17]}  Rxb6 {[%clk 0:00:03]} 43. Rc4 {[%clk 0:00:17]}  Rb2 {[%clk 0:00:02]} 44. Rc8 {[%clk 0:00:16]}  h5 {[%clk 0:00:03]} 45. h4 {[%clk 0:00:16]}  Kf6 {[%clk 0:00:03]} 46. Kg2 {[%clk 0:00:16]}  Ke6 {[%clk 0:00:04]} 47. Kf3 {[%clk 0:00:17]}  Rb1 {[%clk 0:00:04]} 48. c4 {[%clk 0:00:17]}  Rc1 {[%clk 0:00:04]} 49. c5 {[%clk 0:00:16]}  Kd7 {[%clk 0:00:04]} 50. Rf8 {[%clk 0:00:16]}  Ke7 {[%clk 0:00:05]} 51. Rc8 {[%clk 0:00:15]}  Kd7 {[%clk 0:00:05]} 52. Ra8 {[%clk 0:00:12]}  Rxc5 {[%clk 0:00:05]} 53. Ke4 {[%clk 0:00:13]}  Rf5 {[%clk 0:00:04]} 54. Ra7+ {[%clk 0:00:12]}  Ke6 {[%clk 0:00:04]} 55. f4 {[%clk 0:00:11]}  Kf6 {[%clk 0:00:03]} 56. Ra8 {[%clk 0:00:10]}  Kg7 {[%clk 0:00:03]} 57. Ra6 {[%clk 0:00:10]}  Rb5 {[%clk 0:00:03]} 58. Ra3 {[%clk 0:00:09]}  Kf6 {[%clk 0:00:03]} 59. Kf3 {[%clk 0:00:09]}  Rb4 {[%clk 0:00:02]} 60. Rd3 {[%clk 0:00:09]}  Kf5 {[%clk 0:00:03]} 61. Rd5+ {[%clk 0:00:08]}  Kf6 {[%clk 0:00:03]} 62. Re5 {[%clk 0:00:08]}  Rb3+ {[%clk 0:00:04]} 63. Kg2 {[%clk 0:00:08]}  Rb2+ {[%clk 0:00:04]} 64. Kh3 {[%clk 0:00:07]}  Rb3 {[%clk 0:00:05]} 65. Rg5 {[%clk 0:00:07]}  Rb2 {[%clk 0:00:05]} 66. f5 {[%clk 0:00:03]}  Rc2 {[%clk 0:00:05]} 67. fxg6 {[%clk 0:00:02]}  fxg6 {[%clk 0:00:06]} 68. Ra5 {[%clk 0:00:02]}  Rc6 {[%clk 0:00:07]} 69. g4 {[%clk 0:00:03]}  Rc3+ {[%clk 0:00:07]} 70. Kg2 {[%clk 0:00:03]}  hxg4 {[%clk 0:00:07]} 71. Rg5 {[%clk 0:00:03]}  g3 {[%clk 0:00:04]} 72. Rxg3 {[%clk 0:00:03]}  Rc2+ {[%clk 0:00:04]} 73. Kh3 {[%clk 0:00:03]}  Rf2 {[%clk 0:00:05]} 74. Kg4 {[%clk 0:00:03]}  Rf5 {[%clk 0:00:05]} 75. Rf3 {[%clk 0:00:04]}  Rxf3 {[%clk 0:00:05]} 76. Kxf3 {[%clk 0:00:05]}  Kf5 {[%clk 0:00:05]} 77. Kg3 {[%clk 0:00:05]}  g5 {[%clk 0:00:04]} 78. h5 {[%clk 0:00:05]}  Kf6 {[%clk 0:00:04]} 79. Kg4 {[%clk 0:00:05]}  Kg7 {[%clk 0:00:04]} 80. Kxg5 {[%clk 0:00:06]}  Kh8 {[%clk 0:00:05]} 81. h6 {[%clk 0:00:07]}  Kg8 {[%clk 0:00:06]} 82. Kg6 {[%clk 0:00:08]}  Kh8 {[%clk 0:00:07]} 83. h7 {[%clk 0:00:09]} 1/2-1/2


[Site "https://www.chess.com"]

[Event "Titled Tuesday Blitz December 27 Early 2022"]
[White "Goltseva, Ekaterina"]
[Black "Baskakov, Egor"]
[WhiteFideId "24173770"]
[BlackFideId "24197866"]
[WhiteElo "2283"]
[BlackElo "2215"]
[Result "0-1"]
[Round "02"]
[TimeControl "180+2"]
[Date "2022.12.27"]
[WhiteClock "0:00:01"]
[BlackClock "0:00:42"]

1. d4 {[%clk 0:03:00]}  Nf6 {[%clk 0:02:59]} 2. c4 {[%clk 0:02:59]}  e6 {[%clk 0:02:59]} 3. Nc3 {[%clk 0:02:58]}  d5 {[%clk 0:03:00]} 4. Nf3 {[%clk 0:02:57]}  Ne4 {[%clk 0:03:00]} 5. Qd3 {[%clk 0:02:53]}  f5 {[%clk 0:02:59]} 6. g3 {[%clk 0:02:50]}  c6 {[%clk 0:02:59]} 7. Bg2 {[%clk 0:02:50]}  Be7 {[%clk 0:02:59]} 8. Bf4 {[%clk 0:02:50]}  O-O {[%clk 0:02:59]} 9. Ne5 {[%clk 0:02:49]}  Nd7 {[%clk 0:02:58]} 10. f3 {[%clk 0:02:49]}  Nxc3 {[%clk 0:02:57]} 11. Qxc3 {[%clk 0:02:45]}  g5 {[%clk 0:02:56]} 12. Nxd7 {[%clk 0:02:41]}  Bxd7 {[%clk 0:02:57]} 13. Be5 {[%clk 0:02:41]}  Bf6 {[%clk 0:02:54]} 14. Bxf6 {[%clk 0:02:29]}  Qxf6 {[%clk 0:02:55]} 15. O-O-O {[%clk 0:02:30]}  f4 {[%clk 0:02:48]} 16. Kb1 {[%clk 0:02:01]}  Be8 {[%clk 0:02:42]} 17. Ka1 {[%clk 0:01:54]}  Bg6 {[%clk 0:02:41]} 18. c5 {[%clk 0:01:41]}  Rae8 {[%clk 0:02:39]} 19. e3 {[%clk 0:01:15]}  e5 {[%clk 0:02:37]} 20. gxf4 {[%clk 0:01:04]}  exf4 {[%clk 0:02:32]} 21. exf4 {[%clk 0:01:01]}  Qxf4 {[%clk 0:02:33]} 22. Rd2 {[%clk 0:00:42]}  Qxh2 {[%clk 0:02:19]} 23. Qc1 {[%clk 0:00:39]}  Qf4 {[%clk 0:02:17]} 24. a3 {[%clk 0:00:37]}  Re3 {[%clk 0:02:16]} 25. Rf1 {[%clk 0:00:28]}  Rfe8 {[%clk 0:02:14]} 26. Bh3 {[%clk 0:00:25]}  Rxf3 {[%clk 0:02:05]} 27. Rh1 {[%clk 0:00:23]}  Ree3 {[%clk 0:01:56]} 28. Bg2 {[%clk 0:00:18]}  Rg3 {[%clk 0:01:50]} 29. Rf1 {[%clk 0:00:17]}  Qg4 {[%clk 0:01:50]} 30. Rdf2 {[%clk 0:00:15]}  Re8 {[%clk 0:01:37]} 31. Qd2 {[%clk 0:00:14]}  Rge3 {[%clk 0:01:33]} 32. Bh1 {[%clk 0:00:04]}  Re2 {[%clk 0:01:25]} 33. Qc1 {[%clk 0:00:04]}  Rxf2 {[%clk 0:01:24]} 34. Rxf2 {[%clk 0:00:05]}  Qxd4 {[%clk 0:01:24]} 35. Qf1 {[%clk 0:00:04]}  Qxc5 {[%clk 0:01:12]} 36. Bg2 {[%clk 0:00:04]}  Qe7 {[%clk 0:01:13]} 37. Ka2 {[%clk 0:00:02]}  Rf8 {[%clk 0:01:08]} 38. Rxf8+ {[%clk 0:00:01]}  Qxf8 {[%clk 0:01:09]} 39. Qe2 {[%clk 0:00:02]}  Qf6 {[%clk 0:01:04]} 40. Bh3 {[%clk 0:00:02]}  Bf7 {[%clk 0:01:04]} 41. Bd7 {[%clk 0:00:01]}  h5 {[%clk 0:00:59]} 42. Qg2 {[%clk 0:00:02]}  g4 {[%clk 0:00:59]} 43. Qg3 {[%clk 0:00:03]}  d4+ {[%clk 0:00:58]} 44. b3 {[%clk 0:00:02]}  Kg7 {[%clk 0:00:55]} 45. Bc8 {[%clk 0:00:02]}  Qe7 {[%clk 0:00:47]} 46. Bxg4 {[%clk 0:00:01]}  Qg5 {[%clk 0:00:42]} 47. Qe5+ {[%clk 0:00:01]}  Qxe5 {[%clk 0:00:42]} 0-1


[Site "https://www.chess.com"]

[Event "Titled Tuesday Blitz December 27 Early 2022"]
[White "Gulevich, Artem"]
[Black "Zakhartsov, Vladimir"]
[WhiteFideId "24119580"]
[BlackFideId "4145097"]
[WhiteElo "2304"]
[BlackElo "2552"]
[Result "0-1"]
[Round "02"]
[TimeControl "180+2"]
[Date "2022.12.27"]
[WhiteClock "0:00:04"]
[BlackClock "0:00:03"]

1. Nf3 {[%clk 0:02:59]}  g6 {[%clk 0:02:58]} 2. d4 {[%clk 0:02:59]}  Bg7 {[%clk 0:02:59]} 3. b3 {[%clk 0:02:59]}  c5 {[%clk 0:02:58]} 4. Bb2 {[%clk 0:03:00]}  cxd4 {[%clk 0:02:58]} 5. Nxd4 {[%clk 0:03:00]}  Nf6 {[%clk 0:02:58]} 6. e3 {[%clk 0:03:00]}  O-O {[%clk 0:02:58]} 7. Be2 {[%clk 0:03:01]}  b6 {[%clk 0:02:51]} 8. Bf3 {[%clk 0:02:59]}  d5 {[%clk 0:02:50]} 9. O-O {[%clk 0:02:56]}  Bb7 {[%clk 0:02:39]} 10. c4 {[%clk 0:02:55]}  e5 {[%clk 0:02:37]} 11. Nb5 {[%clk 0:02:53]}  e4 {[%clk 0:02:35]} 12. Be2 {[%clk 0:02:53]}  Nc6 {[%clk 0:02:22]} 13. cxd5 {[%clk 0:02:45]}  Nxd5 {[%clk 0:02:22]} 14. Bxg7 {[%clk 0:02:44]}  Kxg7 {[%clk 0:02:23]} 15. N1c3 {[%clk 0:02:45]}  Nxc3 {[%clk 0:02:07]} 16. Nxc3 {[%clk 0:02:45]}  Qe7 {[%clk 0:02:05]} 17. Qc2 {[%clk 0:02:03]}  f5 {[%clk 0:01:25]} 18. Rfd1 {[%clk 0:01:59]}  Ne5 {[%clk 0:01:23]} 19. Nb5 {[%clk 0:01:48]}  Kh6 {[%clk 0:00:56]} 20. Nd6 {[%clk 0:01:15]}  Bc6 {[%clk 0:00:53]} 21. Nc4 {[%clk 0:01:07]}  Rac8 {[%clk 0:00:37]} 22. Nxe5 {[%clk 0:01:01]}  Qxe5 {[%clk 0:00:38]} 23. Rac1 {[%clk 0:01:01]}  Bb7 {[%clk 0:00:29]} 24. Qd2 {[%clk 0:00:58]}  Rfd8 {[%clk 0:00:28]} 25. Qxd8 {[%clk 0:00:15]}  Rxd8 {[%clk 0:00:29]} 26. Rxd8 {[%clk 0:00:16]}  Qb2 {[%clk 0:00:29]} 27. Re1 {[%clk 0:00:16]}  Qxa2 {[%clk 0:00:28]} 28. Bc4 {[%clk 0:00:13]}  b5 {[%clk 0:00:25]} 29. Be6 {[%clk 0:00:12]}  a5 {[%clk 0:00:20]} 30. Rd6 {[%clk 0:00:07]}  Kg5 {[%clk 0:00:11]} 31. g3 {[%clk 0:00:06]}  Qa3 {[%clk 0:00:07]} 32. Red1 {[%clk 0:00:05]}  a4 {[%clk 0:00:06]} 33. bxa4 {[%clk 0:00:05]}  bxa4 {[%clk 0:00:07]} 34. h4+ {[%clk 0:00:04]}  Kg4 {[%clk 0:00:06]} 35. Kg2 {[%clk 0:00:04]}  Qb2 {[%clk 0:00:05]} 36. R1d2 {[%clk 0:00:02]}  Qb1 {[%clk 0:00:04]} 37. Bf7 {[%clk 0:00:02]}  a3 {[%clk 0:00:03]} 38. Bxg6 {[%clk 0:00:02]}  hxg6 {[%clk 0:00:03]} 39. Rxg6+ {[%clk 0:00:03]}  Kh5 {[%clk 0:00:03]} 40. Rg5+ {[%clk 0:00:04]}  Kh6 {[%clk 0:00:04]} 41. Rd8 {[%clk 0:00:04]}  Kh7 {[%clk 0:00:02]} 42. Rdg8 {[%clk 0:00:04]}  Qb2 {[%clk 0:00:02]} 43. h5 {[%clk 0:00:03]}  a2 {[%clk 0:00:02]} 44. h6 {[%clk 0:00:03]}  a1=Q {[%clk 0:00:03]} 45. R5g7+ {[%clk 0:00:03]}  Qxg7 {[%clk 0:00:02]} 46. Rxg7+ {[%clk 0:00:03]}  Kxh6 {[%clk 0:00:03]} 47. Rxb7 {[%clk 0:00:04]}  Kg5 {[%clk 0:00:03]} 48. Rg7+ {[%clk 0:00:04]}  Qxg7 {[%clk 0:00:03]} 0-1


[Site "https://www.chess.com"]